Cogmind - Beta 11.1 @@@ ROGUE MODE // 2022.11.19 @ 23:18:45 Player: Tango Result: Destroyed by G-47 Trooper with Particle Gun Performance ------------- Evolutions (0) 0 Regions Visited (2) 400 Robots Destroyed (8) 40 Value Destroyed (124) 124 Prototype IDs (2) 40 Alien Tech Used (0) 0 Bonus (0) 0 TOTAL SCORE: 604 Bonus ------- None Cogmind --------- Core Integrity 0/250 Matter 238/300 Energy 122/275 System Corruption 2% Temperature Cool (11) Movement Walking (130) Location -10/Mines Parts ------- > --- POWER (1) -------- Deuterium Engine > --- PROPULSION (2) --- Titanium Leg > --- UTILITY (2) ------ Improved Heat Sink Targeting Computer > --- WEAPON (2) ------- Light Assault Rifle Blade Saw > --- INVENTORY (5) ---- Light Ion Engine Compact Battery (0) Improved Light Armor Plating Peak State ------------ > --- POWER ------------ Deuterium Engine > --- PROPULSION ------- Titanium Leg > --- UTILITY ---------- Improved Heat Sink Targeting Computer > --- WEAPON ----------- Light Assault Rifle Blade Saw > --- INVENTORY -------- Light Ion Engine Improved Light Armor Plating [Rating: 14] Favorites ----------- Power Light Ion Engine Engine Light Ion Engine Propulsion Compact Wheel Leg Titanium Leg Wheel Compact Wheel Utility Small Storage Unit Device Improved Heat Sink Storage Small Storage Unit Processor Targeting Computer Weapon Assault Rifle Energy Gun EM Pulse Gun Ballistic Gun Assault Rifle Launcher Grenade Launcher Slashing Weapon Blade Saw Build | -11 -10 -10 ------- Run | Scr Mat Min Slots Evolved . | . . . Power . | . . . Propulsion . | . . . Utility . | . . . Weapon . | . . . Parts Attached 18 | 7 3 8 Power 4 | 1 . 3 Engine 4 | 1 . 3 Core . | . . . Reactor . | . . . Propulsion 3 | 2 . 1 Treads . | . . . Leg 1 | . . 1 Wheel 2 | 2 . . Hover . | . . . Flight . | . . . Utility 4 | 1 1 2 Device 1 | . . 1 Storage 2 | 1 . 1 Processor 1 | . 1 . Hackware . | . . . Protection . | . . . Artifact . | . . . Weapon 7 | 3 2 2 Energy Gun 2 | 1 1 . Energy Cannon . | . . . Ballistic Gun 3 | 2 . 1 Ballistic Cannon . | . . . Launcher 1 | . 1 . Special Weapon . | . . . Impact Weapon . | . . . Slashing Weapon 1 | . . 1 Piercing Weapon . | . . . Special Melee Weapon . | . . . Unidentified Prototypes . | . . . Parts Lost 8 | . 6 2 Power 2 | . 1 1 Propulsion 2 | . 2 . Utility 1 | . . 1 Weapon 3 | . 3 . Highest Loss Streak 4 | . 4 2 To Critical Strikes . | . . . Average Slot Usage (%) 52 | . 60 39 Engine 6 | . 6 6 Wheel 9 | . 14 . Storage 10 | . 14 5 Processor 7 | . 3 14 Energy Gun 1 | . 2 . Ballistic Gun 14 | . 17 10 Launcher 1 | . 2 . Naked Turns . | . . . Heaviest Build 13 | 12 12 13 Greatest Support 32 | 32 32 17 Greatest Overweight (x) 2 | . 2 1 Average Overweight (x) . | . . . Largest Inventory Capacity 8 | 8 8 5 Average Capacity 6 | 6 8 5 Most Carried 5 | 5 4 5 Average Carried 3 | 1 3 3 Final Capacity 8 | 8 8 5 Final Carried 3 | 2 3 3 Class Distribution -------------------- 100% | Mutant Dominant Class ---------------- Mutant | -10/Materials Mutant | -10/Mines Resources | -11 -10 -10 ----------- Run | Scr Mat Min Matter Collected 352 | 237 14 101 Remotely . | . . . Salvage Created 117 | . 95 22 Parts 11 | . 9 2 Haulers Intercepted . | . . . Recyclers Shooed 1 | . 1 . Parts Field Recycled . | . . . Retrieved Matter . | . . . Parts Self-Destructed . | . . . Prevented . | . . . Kills | -11 -10 -10 ------- Run | Scr Mat Min Combat Hostiles Destroyed 5 | . 3 2 Guns 2 | . . 2 AOE 3 | . 3 . Classes Destroyed 5 | . 5 . Worker 1 | . 1 . Builder 1 | . 1 . Tunneler 1 | . 1 . Swarmer 3 | . 1 2 Grunt 2 | . 2 . Best Kill Streak 6 | . 6 2 Combat Bots Only 3 | . 3 2 Max Kills in Single Turn 2 | . 2 1 Gunslinging . | . . . Exploded 2 | . 2 . Melee . | . . . Uniques/NPCs Destroyed . | . . . Combat | -11 -10 -10 -------- Run | Scr Mat Min Damage Taken 795 | 3 588 204 Core 266 | . 177 89 Absorbed by Shields . | . . . Core Remaining (%) 100 | 100 . . Volleys Fired 21 | . 13 8 Largest 2 | . 2 1 Hottest 50 | . 50 20 Shots Fired 26 | . 18 8 Gun 19 | . 11 8 Cannon . | . . . Launcher 7 | . 7 . Special . | . . . Kinetic 15 | . 7 8 Thermal . | . . . Explosive 7 | . 7 . Electromagnetic 4 | . 4 . Robot Hit Streak 2 | . 2 2 Robot Miss Streak 3 | . 3 1 Penetration Max . | . . . Secondary Targets . | . . . Shots Hit Robots 10 | . 5 5 Core Hits 16 | . 13 3 Critical Kills . | . . . Critical Parts Destroyed . | . . . Critical Strikes . | . . . Melee Attacks . | . . . Impact . | . . . Slashing . | . . . Piercing . | . . . Sneak Attacks . | . . . Combat Hostiles . | . . . Follow-up Attacks . | . . . Damage Inflicted 406 | 7 359 40 Guns 64 | . 24 40 Cannons . | . . . Explosions 314 | . 314 . Melee . | . . . Ramming 28 | 7 21 . Kinetic 53 | . 13 40 Thermal . | . . . Explosive 314 | . 314 . Electromagnetic 11 | . 11 . Impact . | . . . Slashing . | . . . Piercing . | . . . Highest Corruption 2 | . 2 2 Average Corruption 1 | . 1 2 Corruption Purged . | . . . Corruption Blocked . | . . . Effects 3 | . 1 2 Message Errors 1 | . . 1 Matter Fused 1 | . 1 . Data Loss (minor) 1 | . . 1 Overload Shots . | . . . Overflow Damage 3 | . 3 . Projectiles . | . . . Explosions 3 | . 3 . Melee . | . . . Knockbacks . | . . . Impact . | . . . Kinetic . | . . . Secondary . | . . . Self-Inflicted Damage 43 | 3 40 . Shots 2 | . 2 . Rammed 11 | 2 9 . Targets Rammed 11 | 2 9 . Kicked . | . . . Crushed . | . . . Highest Temperature 2 | . 2 . Average Temperature 2 | . 2 . Received Heat Transfer 90 | . 66 24 Siege Activations . | . . . Robots Corrupted . | . . . Combat Hostiles . | . . . Parts Fried . | . . . Impact Corruptions . | . . . Robots Melted . | . . . Combat Hostiles . | . . . Parts Melted . | . . . Heat Transferred . | . . . Parts Sabotaged . | . . . Parts Stolen . | . . . Parts Stripped . | . . . Power Chain Reactions . | . . . Missiles Intercepted . | . . . Alert | -11 -10 -10 ------- Run | Scr Mat Min Peak Influence 148 | . 148 83 Initial 48 | . . 48 Average 41 | . 53 61 Maximum Alert Level . | . . . Low Security (%) 100 | 100 100 100 Level 1 . | . . . Level 2 . | . . . Level 3 . | . . . Level 4 . | . . . Level 5 . | . . . High Security . | . . . Max Security . | . . . Squads Dispatched 2 | . 1 1 Investigation 2 | . 1 1 Extermination . | . . . Reinforcement . | . . . Assault . | . . . Garrison . | . . . Intercept . | . . . Searches Triggered . | . . . Construction Impeded . | . . . Haulers Reinforced . | . . . Active Scanning Responses . | . . . Cargo Convoy Interrupts . | . . . Stealth | -11 -10 -10 --------- Run | Scr Mat Min Distress Signals 1 | . 1 . Communications Jammed . | . . . Distress Signals . | . . . Times Spotted 13 | . 7 6 Peak Tracking Total 5 | . 5 3 Tactical Retreats 2 | . 1 1 Traps | -11 -10 -10 ------- Run | Scr Mat Min Traps Triggered 1 | . 1 . Indirectly . | . . . Trap Hack Attempts . | . . . Triggered . | . . . Disarmed . | . . . Reprogrammed . | . . . Reused . | . . . Traps Extracted . | . . . Installed . | . . . Triggered . | . . . Machines | -11 -10 -10 ---------- Run | Scr Mat Min Machines Disabled . | . . . Max in Single Turn . | . . . Machines Sabotaged . | . . . Garrisons Compromised . | . . . Overloaded Fab Kills . | . . . Hacking | -11 -10 -10 --------- Run | Scr Mat Min Machines Accessed 2 | . 1 1 Terminals 1 | . 1 . Fabricators . | . . . Repair Stations . | . . . Recycling Units . | . . . Scanalyzers . | . . . Garrison Access . | . . . Total Hacks 5 | . 4 1 Successful 5 | . 4 1 Failed . | . . . Catastrophic . | . . . Database Lockouts . | . . . Manual . | . . . Terminals 4 | . 4 . Fabricators . | . . . Repair Stations . | . . . Recycling Units . | . . . Scanalyzers . | . . . Garrison Access . | . . . Terminal Hacks 5 | . 4 1 Record 2 | . 2 . Prototype ID Bank 1 | . 1 . Open Door 1 | . . 1 Alert Level 1 | . 1 . Fabricator Hacks . | . . . Repair Station Hacks . | . . . Recycling Unit Hacks . | . . . Scanalyzer . | . . . Garrison Access Hacks . | . . . Unauthorized Hacks . | . . . Terminals . | . . . Fabricators . | . . . Repair Stations . | . . . Recycling Units . | . . . Scanalyzers . | . . . Garrison Access . | . . . Data Cores Recovered . | . . . Used . | . . . Hacking Detections 1 | . 1 . Full Trace Events . | . . . Feedback Events . | . . . Feedback Blocked . | . . . Robot Schematics Acquired . | . . . Robots Built . | . . . Authchips . | . . . Time . | . . . Total Robot Build Rating . | . . . Part Schematics Acquired . | . . . Parts Built . | . . . Authchips . | . . . Time . | . . . Total Part Build Rating . | . . . Parts Repaired . | . . . Time . | . . . Parts Recycled . | . . . Recycled Matter . | . . . Retrieved Matter . | . . . Retrieved Components . | . . . Parts Scanalyzed . | . . . Part Schematics Acquired . | . . . Parts Damaged . | . . . Bothacking | -11 -10 -10 ------------ Run | Scr Mat Min Used RIF Installer . | . . . Robots Hacked . | . . . Non-combat . | . . . Combat . | . . . Robot Hacks Applied . | . . . Relay Couplers Released . | . . . Fabnet Peak Effective % . | . . . Robots Rewired . | . . . Allies Hacked . | . . . Hacks Repelled . | . . . Allies | -11 -10 -10 -------- Run | Scr Mat Min Total Allies . | . . . Largest Group . | . . . Highest-Rated Group . | . . . Highest-Rated Ally . | . . . Total Orders . | . . . Ally Attacks . | . . . Total Damage . | . . . Kills . | . . . Allies Corrupted . | . . . Allies Melted . | . . . Intel | -11 -10 -10 ------- Run | Scr Mat Min Robot Analysis Total . | . . . Derelict Logs Recovered . | . . . Drone Launches . | . . . Drone Recoveries . | . . . Exploration | -11 -10 -10 ------------- Run | Scr Mat Min Turns Passed 427 | 112 198 117 Spaces Moved 382 | 109 147 126 Core 181 | 29 33 119 Treads . | . . . Legs 7 | . . 7 Wheels 194 | 80 114 . Hover . | . . . Flight . | . . . Fastest Speed 50 | 50 100 50 Average Speed 86 | 86 103 65 Slowest Speed 150 | 100 150 130 Overloaded Moves . | . . . Propulsion Burnouts . | . . . Robots Hopped . | . . . Cave-ins Triggered . | . . . Exploration Rate (%) 17 | 4 28 21 Regions Visited 2 Branch Regions 1 Pre-discovered Areas . | . . . Known Exits Taken . | . . . Unknown Exits Taken 2 | 1 1 . Scrap Searched . | . . . Spaces Dug . | . . . Terrain Destroyed 26 | . 26 . Melee . | . . . Projectile . | . . . AOE 26 | . 26 . Terrain Rammed . | . . . Walls Destroyed . | . . . Machines Disabled . | . . . Actions | -11 -10 -10 --------- Run | Scr Mat Min Total 457 | 126 174 157 Wait . | . . . Move 380 | 108 146 126 Hop . | . . . Pick Up 21 | 8 3 10 Fast Attach . | . . . Attach 16 | 7 2 7 Detach 2 | 1 . 1 Swap 2 | . 1 1 Drop 4 | . . 4 Fire 21 | . 13 8 Melee . | . . . Ram 11 | 2 9 . Kick . | . . . Crush . | . . . Escape Stasis . | . . . Rewire . | . . . Trap . | . . . Miscellaneous . | . . . Route ------- -11/Scrapyard -10/Materials -10/Mines History --------- Turn | Location | Event 21 | -11/Scrapyard | Discovered new exit (range 15) 113 | -11/Scrapyard | Entered Materials 272 | -10/Materials | Core integrity fell below 50% 285 | -10/Materials | Discovered new exit (range 15) 306 | -10/Materials | Build established: Mutant 311 | -10/Materials | Entered Mines 322 | -10/Mines | Lost 4 parts (1n3w) 346 | -10/Mines | Core integrity fell below 20% 397 | -10/Mines | Met a Derelict shopkeep closing up shop 428 | -10/Mines | Destroyed by G-47 Trooper with Particle Gun Last Messages --------------- 00397_ SU-INE(g): "Sorry, the Unaware have moved into these parts and I'm closing up shop. No more sales from me!" 00399_ ALERT: Derelict activity detected in mines. Dispatching investigation squad. 00401_ SU-INE(g): "Well, take what you want I guess, I've had enough of this place!" 00402_ Dropped Broken Assault Rifle. 00403_ Dropped Sml. Storage Unit. 00403_ Dropped Imp. Heat Sink. 00404_ Dropped Flight Unit. 00405_ Acquired Blade Saw. 00406_ Acquired Imp. Light Armor Plating. 00408_ Acquired Titanium Leg. 00410_ Acquired Imp. Heat Sink. 00411_ N=MZH1TUHVYOIP=PQ#CM YF 00413_ R-06 Scavenger collects Flight Unit. 00417_ R-06 Scavenger collects Sml. Storage Unit. 00418_ Acquired Deuterium Engine. 00420_ R-06 Scavenger collects Broken Assault Rifle. 00423_ Acquired Com. Battery. Map ----- +----------------------------------------------------+ | ?????????????????????????????????????????????????? | | ?????????????????????????????????????????????????? | | ?????????????????????????????????????????????????? | | ?????????????????????????????????????????????????? | | ?????????????????????????????????????????????????? | | ?????????????????????????????????????????????????? | | ?????????????????????????????????????????????????? | | ?????????????????????????????????????????????????? | | ?????????????????????????????????????????????????? | | ?????????????????????????????????????????????????? | | ?????????????????????????????????????????????????? | | ?????????????????????????????????????????????????? | | ?????????????????????????????????????????????????? | | ?????????????????????????????????????????????????? | | ?????????????????????????????????????????????????? | | ?????????????????????????????????????????????????? | | ?????????????????????????????????????????????????? | | ?????????????????????????????????????????????????? | | ?????????????????????????????????????????????????? | | ???????????????????????######????????????????????? | | ??????????????????????##""""##???????????????????? | | ??????????????????????#"! "#???????#???????????? | | ??????????????????????#" "#?????# #???????????? | | ??????????????????????## ##???? ##??????????? | | ?????????????????????#### ###??? ## ????????? | | ?????????????????????# X@ ##? ????????? | | ?????????????????????# t ## ???????? | | ????????????????????# g r ???????? | | ????????????????????# #???????? | | ???????????????????## g ##### ##???????? | | #???????????????????## ##????? #????????? | | ###?????????????????# ##?????? ?????????? | | ################### #????????????????? | | # #????????????????? | | ## ## #????????????????? | | ?## ####### ##### ########?# ##????????????????? | | ??####??#### #???#$#?????????###?????????????????? | | ????????# #???# #?????????????????????????????? | | ????????# ####???# #?????????????????????????????? | | ??####### #??????# #?????????????????????????????? | | ??# ## #??????# #?????????????????????????????? | | ??# ## #?####?# #?????????????????????????????? | | ??# ## ### ##? ??????????????????????????????? | | ??# ## #? ??????????????????????????????? | | ??# ## ## ## ??????????????????????????????? | | ??# ## ### ##??????????????????????????????? | | ??# #?## = ##?????????????????????????????? | | ??# ####??## #?????????????????????????????? | | ??######??????# #?????????????????????????????? | | ??????????????## ##?????????????????????????????? | +----------------------------------------------------+ Best States ------------- Heat Dissipation 39 Energy Generation 10 Energy Capacity 125 Matter Stores 300 Matter Capacity 400 Sight Range 16 Terrain Scan Density 10 Evasion (%) 50 Targeting Accuracy 5 Item Schematics ----------------- None Robot Schematics ------------------ None Fabricated ------------ Nothing Alien Tech Used ----------------- None Achievements -------------- None Challenges ------------ None Game ------ Seed SupercompositeVisualSword Manual? 0 Play Time 00:10:56 Cumulative 22.4 hours Start 2022.11.19 @ 20:00:55 End 2022.11.19 @ 23:18:45 Sessions 1 Manual Loads 0 Difficulty Rogue Special Mode None Game No. 36 Rogue 26 Adventurer 10 Explorer 0 Win Type - Total 0 Types 0/0/0/0/0/0/0/0/0 Lore% 17 Gallery% 26 Achievement% 24 Wizard Run 0 Options --------- ASCII 0 Keyboard 0 Movement Arrows Keybinds 0 Fullscreen 0 Font 16/SmallcapsGlow Map View 76x50 Tactical HUD 1 Map Filters NONE Filters NONE Steam 1 RUN: e5280d94-b91c-488f-aa3f-1d3fdada950d